Cogmind - Beta 17.1 @@@ ROGUE MODE // 2026.09.03 @ 00:07:00 // AFD2020/Player2 Player: spider Result: Core destroyed Performance ------------- Evolutions (0) 0 Regions Visited (2) 400 Robots Destroyed (15) 75 Value Destroyed (213) 213 Prototype IDs (0) 0 Alien Tech Used (0) 0 Bonus (114) 114 TOTAL SCORE: 802 Bonus ------- Follower Combat Kills 177 Friendly Fire -63 Cogmind --------- Core Integrity 0/250 Matter 300/300 Energy 100/100 System Corruption 0% Temperature Cool (57) Movement Treading (160) Location -10/Mines Parts ------- > --- POWER (1) -------- (None) > --- PROPULSION (2) --- Light Treads Light Treads > --- UTILITY (2) ------ Improved Heat Sink Large Storage Unit > --- WEAPON (2) ------- Particle Cannon Particle Cannon > --- INVENTORY (15) --- Ion Engine Aluminum Leg Aluminum Leg Compact Wheel Improved Heat Sink Large Storage Unit Huge Storage Unit Seismic Detector Seismic Detector EM Pulse Gun Light Cannon Mining Laser Hammer Peak State ------------ > --- POWER ------------ Ion Engine > --- PROPULSION ------- Light Treads Light Treads > --- UTILITY ---------- Improved Heat Sink Large Storage Unit > --- WEAPON ----------- Particle Cannon Particle Cannon > --- INVENTORY -------- Ion Engine Aluminum Leg Aluminum Leg Compact Wheel Large Storage Unit Seismic Detector Seismic Detector EM Pulse Gun Light Cannon Mining Laser [Rating: 12] Favorites ----------- Power Ion Engine Engine Ion Engine Propulsion Light Treads Treads Light Treads Utility Large Storage Unit Device Improved Heat Sink Storage Large Storage Unit Weapon Particle Cannon Energy Gun Medium Laser Energy Cannon Particle Cannon Ballistic Gun Light Assault Rifle Build | -11 -10 -10 ------- Run | Yrd Mat Min Slots Evolved . | . . . Power . | . . . Propulsion . | . . . Utility . | . . . Weapon . | . . . Parts Attached 12 | 6 5 1 Power 1 | 1 . . Engine 1 | 1 . . Core . | . . . Reactor . | . . . Propulsion 2 | 2 . . Treads 2 | 2 . . Leg . | . . . Wheel . | . . . Hover . | . . . Flight . | . . . Utility 5 | 1 3 1 Device 3 | . 2 1 Storage 2 | 1 1 . Processor . | . . . Hackware . | . . . Protection . | . . . Artifact . | . . . Weapon 4 | 2 2 . Energy Gun 1 | 1 . . Energy Cannon 2 | . 2 . Ballistic Gun 1 | 1 . . Ballistic Cannon . | . . . Launcher . | . . . Special Weapon . | . . . Impact Weapon . | . . . Slashing Weapon . | . . . Piercing Weapon . | . . . Special Melee Weapon . | . . . Unidentified Prototypes . | . . . Parts Lost 1 | . . 1 Power 1 | . . 1 Propulsion . | . . . Utility . | . . . Weapon . | . . . Highest Loss Streak 1 | . . 1 To Critical Strikes . | . . . Average Backups 9 | 4 10 12 Power . | . 1 1 Propulsion 2 | 2 3 3 Utility 3 | . 3 4 Weapon 2 | . 3 4 Tool/Special . | . . . Unused Backups 14 | 1 1 12 Power 1 | . . 1 Propulsion 4 | 1 . 3 Utility 4 | . . 4 Weapon 5 | . 1 4 Tool/Special . | . . . Average Slot Usage (%) 98 | . 98 100 Engine 14 | . 14 14 Treads 28 | . 28 28 Device 12 | . 12 14 Storage 14 | . 14 14 Energy Gun 5 | . 6 . Energy Cannon 17 | . 14 28 Ballistic Gun 5 | . 6 . Peak Build Rating 12 | 6 12 12 Average Rating 9 | 5 9 10 On Entrance 6 | . 6 12 Avg Prop Armor Cover (%) . | . . . Naked Turns . | . . . Heaviest Build 34 | 13 34 34 Greatest Support 40 | 40 40 40 Greatest Overweight (x) . | . . . Average Overweight (x) . | . . . Largest Inventory Capacity 15 | 8 15 15 Average Capacity 12 | 7 13 15 Most Carried 13 | 8 12 13 Average Carried 9 | 4 10 12 Final Capacity 15 | 8 15 15 Final Carried 13 | 8 12 13 Class Distribution -------------------- 100% | Mutant Dominant Class ---------------- Mutant | -10/Materials Mutant | -10/Mines Resources | -11 -10 -10 ----------- Run | Yrd Mat Min Matter Collected 350 | 233 101 16 Remotely . | . . . Salvage Created 439 | 136 262 41 Parts 27 | 15 7 5 Haulers Intercepted 2 | . 2 . Recyclers Shooed 1 | . 1 . Parts Field Recycled . | . . . Retrieved Matter . | . . . Parts Self-Destructed . | . . . Prevented . | . . . Parts Restored . | . . . Kills | -11 -10 -10 ------- Run | Yrd Mat Min Combat Hostiles Destroyed 8 | . 5 3 Guns 1 | . 1 . Cannons 7 | . 4 3 Classes Destroyed 5 | 2 3 . Tunneler 4 | 4 . . Hauler 2 | . 2 . Recycler 1 | 1 . . Swarmer 5 | . 2 3 Grunt 3 | . 3 . Best Kill Streak 4 | 4 2 3 Combat Bots Only 3 | . 2 3 Max Kills in Single Turn 2 | 1 1 2 Gunslinging . | . . . Exploded . | . . . Melee . | . . . Uniques/NPCs Destroyed . | . . . Combat | -11 -10 -10 -------- Run | Yrd Mat Min Hostile Shots Fired 36 | . 25 11 Missed 13 | . 10 3 Hits 23 | . 15 8 Projectile 23 | . 15 8 AOE 6 | . . 6 Damage Taken 449 | . 202 247 Core 161 | . 49 112 Absorbed by Shields . | . . . Core Remaining (%) 100 | 100 . . Volleys Fired 55 | 17 33 5 Largest 2 | 2 2 2 Hottest 136 | 70 136 136 Shots Fired 105 | 33 62 10 Gun 69 | 33 36 . Cannon 36 | . 26 10 Launcher . | . . . Special . | . . . Kinetic 37 | 17 20 . Thermal 68 | 16 42 10 Explosive . | . . . Electromagnetic . | . . . Robot Hit Streak 6 | 6 5 5 Robot Miss Streak 3 | 2 3 1 Penetration Max . | . . . Secondary Targets . | . . . Shots Hit Robots 60 | 21 32 7 Core Hits 28 | 9 16 3 Critical Kills . | . . . Critical Parts Destroyed . | . . . Critical Strikes 1 | 1 . . Burn 1 | 1 . . Melee Attacks . | . . . Impact . | . . . Slashing . | . . . Piercing . | . . . Sneak Attacks . | . . . Combat Hostiles . | . . . Follow-up Attacks . | . . . Damage Inflicted 948 | 207 569 172 Guns 411 | 207 204 . Cannons 513 | . 349 164 Explosions . | . . . Melee . | . . . Ramming 24 | . 16 8 Kinetic 171 | 83 88 . Thermal 753 | 124 465 164 Explosive . | . . . Electromagnetic . | . . . Impact . | . . . Slashing . | . . . Piercing . | . . . Highest Corruption . | . . . Average Corruption . | . . . Corruption Purged . | . . . Corruption Blocked . | . . . Overload Shots . | . . . Overflow Damage 17 | . . 17 Projectiles 17 | . . 17 Explosions . | . . . Melee . | . . . Knockbacks . | . . . Impact . | . . . Kinetic . | . . . Secondary . | . . . Self-Inflicted Damage . | . . . Shots . | . . . Rammed 7 | . 5 2 Targets Rammed 7 | . 5 2 Kicked . | . . . Crushed . | . . . Highest Temperature 150 | 150 147 66 Average Temperature 53 | 61 53 30 Received Heat Transfer 102 | . 102 . Siege Activations . | . . . Martial Activations . | . . . Shielding Activations . | . . . Robots Disrupted . | . . . Combat Hostiles . | . . . Robots Corrupted . | . . . Combat Hostiles . | . . . Parts Fried . | . . . Impact Corruptions . | . . . Robots Melted . | . . . Combat Hostiles . | . . . Parts Melted 4 | 1 2 1 Heat Transferred 1674 | 444 934 296 Parts Sabotaged . | . . . Parts Stolen . | . . . Parts Stripped . | . . . Power Chain Reactions . | . . . Alert | -11 -10 -10 ------- Run | Yrd Mat Min Maximum Alert Level 1 | . 1 . Low Security (%) 98 | 100 97 100 Level 1 1 | . 2 . Level 2 . | . . . Level 3 . | . . . Level 4 . | . . . Level 5 . | . . . High Security . | . . . Max Security . | . . . Peak Influence 208 | 15 208 118 Initial 81 | . . 81 Average 65 | 2 80 64 Influence Increases 547 | 25 435 87 Destroy 0b10 Robot/C 300 | . 240 60 Destroy 0b10 Robot/NC 45 | 25 20 . Destroy Leader 78 | . 68 10 Allied During Kill 93 | . 76 17 Successful Hack 14 | . 14 . Disable Machine 15 | . 15 . Destroy Structure 2 | . 2 . Influence Decreases 469 | 25 227 217 Entered New Map 127 | . . 127 Time Decay 312 | 25 227 60 Lost Part 30 | . . 30 Squads Dispatched 2 | . 2 . Investigation . | . . . Extermination . | . . . Reinforcement 2 | . 2 . Assault . | . . . Garrison . | . . . Intercept . | . . . Searches Triggered . | . . . Construction Impeded . | . . . Haulers Reinforced . | . . . Active Scanning Responses . | . . . Cargo Convoy Interrupts . | . . . Stealth | -11 -10 -10 --------- Run | Yrd Mat Min Distress Signals 2 | . 2 . Communications Jammed . | . . . Distress Signals . | . . . Times Spotted 25 | . 19 6 Peak Tracking Total 3 | . 3 3 Tactical Retreats . | . . . Traps | -11 -10 -10 ------- Run | Yrd Mat Min Traps Triggered . | . . . Indirectly . | . . . Trap Hack Attempts . | . . . Triggered . | . . . Disarmed . | . . . Reprogrammed . | . . . Reused . | . . . Traps Extracted . | . . . Installed . | . . . Triggered . | . . . Machines | -11 -10 -10 ---------- Run | Yrd Mat Min Machines Disabled 1 | . 1 . Max in Single Turn 1 | . 1 . Machines Repaired . | . . . Machines Dismantled . | . . . Machines Sabotaged . | . . . Overloaded Fab Kills . | . . . Hacking | -11 -10 -10 --------- Run | Yrd Mat Min Machines Accessed 6 | . 6 . Terminals 5 | . 5 . Fabricators . | . . . Repair Stations . | . . . Recycling Units 1 | . 1 . Scanalyzers . | . . . Garrison Access . | . . . Total Hacks 18 | . 18 . Successful 7 | . 7 . Failed 11 | . 11 . Catastrophic . | . . . Database Lockouts . | . . . Manual 16 | . 16 . Terminals 16 | . 16 . Fabricators . | . . . Repair Stations . | . . . Recycling Units 2 | . 2 . Scanalyzers . | . . . Garrison Access . | . . . Terminal Hacks 1 | . 1 . Part Schematic 1 | . 1 . Fabricator Hacks . | . . . Repair Station Hacks . | . . . Recycling Unit Hacks . | . . . Scanalyzer . | . . . Garrison Access Hacks . | . . . Unauthorized Hacks 6 | . 6 . Terminals 6 | . 6 . Botnet 2 | . 2 . Skim 4 | . 4 . Fabricators . | . . . Repair Stations . | . . . Recycling Units . | . . . Scanalyzers . | . . . Garrison Access . | . . . Data Cores Recovered . | . . . Used . | . . . Hacking Detections 6 | . 6 . Full Trace Events . | . . . Feedback Events . | . . . Feedback Blocked . | . . . Robot Schematics Acquired . | . . . Robots Built . | . . . Authchips . | . . . Time . | . . . Total Robot Build Rating . | . . . Part Schematics Acquired 1 | . 1 . Parts Built . | . . . Authchips . | . . . Time . | . . . Total Part Build Rating . | . . . Part Studies Acquired . | . . . Parts Repaired . | . . . Time . | . . . Parts Recycled . | . . . Recycled Matter . | . . . Retrieved Matter . | . . . Retrieved Components . | . . . Parts Scanalyzed . | . . . Part Schematics Acquired . | . . . Parts Damaged . | . . . Bothacking | -11 -10 -10 ------------ Run | Yrd Mat Min Used RIF Installer . | . . . Robots Hacked . | . . . Non-combat . | . . . Combat . | . . . Robot Hacks Applied . | . . . Relay Couplers Released . | . . . Fabnet Peak Effective % . | . . . Robots Rewired . | . . . Allies Hacked . | . . . Hacks Repelled . | . . . Allies | -11 -10 -10 -------- Run | Yrd Mat Min Total Allies 1 | . 1 . Largest Group 1 | . 1 1 Highest-Rated Group 61 | . 61 61 Highest-Rated Ally 61 | . 61 61 Total Orders . | . . . Ally Attacks 42 | . 38 4 Total Damage 493 | . 452 41 Kills 9 | . 9 . Allies Corrupted . | . . . Allies Melted . | . . . Intel | -11 -10 -10 ------- Run | Yrd Mat Min Active Infowar (turns) 86 | . 5 81 Seismic 81 | . . 81 ECM 5 | . 5 . Robot Analysis Total . | . . . Derelict Logs Recovered 1 | . . 1 Drone Launches . | . . . Drone Recoveries . | . . . Exploration | -11 -10 -10 ------------- Run | Yrd Mat Min Turns Passed 915 | 150 626 139 Spaces Moved 428 | 57 298 73 Core 5 | 5 . . Treads 423 | 52 298 73 Legs . | . . . Wheels . | . . . Hover . | . . . Flight . | . . . Fastest Speed 50 | 50 160 160 Average Speed 158 | 150 160 160 Slowest Speed 160 | 160 160 160 Overloaded Moves . | . . . Propulsion Burnouts . | . . . Robots Hopped . | . . . Potential Cave-ins . | . . . Cave-ins Triggered . | . . . Exploration Rate (%) 24 | 3 60 10 Regions Visited 2 Branch Regions 1 Pre-discovered Areas . | . . . Known Exits Taken . | . . . Unknown Exits Taken 2 | 1 1 . Scrap Searched 1 | . . 1 Spaces Dug . | . . . Terrain Destroyed . | . . . Melee . | . . . Projectile . | . . . AOE . | . . . Terrain Rammed . | . . . Walls Destroyed . | . . . Machines Disabled . | . . . Actions | -11 -10 -10 --------- Run | Yrd Mat Min Total 559 | 89 387 83 Wait 37 | . 37 . Move 426 | 56 297 73 Hop . | . . . Pick Up 15 | 9 5 1 Fast Attach 10 | 6 4 . Attach . | . . . Detach . | . . . Swap 3 | . 1 2 Drop 6 | 1 5 . Fire 55 | 17 33 5 Melee . | . . . Ram . | . . . Kick . | . . . Crush 7 | . 5 2 Escape Stasis . | . . . Rewire . | . . . Trap . | . . . Miscellaneous . | . . . Route ------- -11/Scrapyard -10/Materials (discovered 2 exits: [*Mat] / [*Min]) -10/Mines History --------- Turn | Location | Event 3 | -11/Scrapyard | Discovered new exit (range 16) 151 | -11/Scrapyard | Entered Materials 317 | -10/Materials | Build established: Mutant 569 | -10/Materials | Discovered new exit (range 11) 682 | -10/Materials | Discovered new exit (range 12) 751 | -10/Materials | Derelicts attacked the area 777 | -10/Materials | Entered Mines 806 | -10/Mines | Learned 4 Materials zone layouts 831 | -10/Mines | Met a Derelict bent on vengeance 900 | -10/Mines | Assembled infested the area 905 | -10/Mines | Assisted by a Guerilla fighting off Assembled 911 | -10/Mines | Core integrity fell below 50% 911 | -10/Mines | Core integrity fell below 20% 916 | -10/Mines | Core destroyed Last Messages --------------- 00891_ Acquired 10 matter. 00892_ Flight Unit melted. 00892_ S-10 Pest destroyed. 00900_ ALERT: Infestation in the mines, dispatching Demolisher response squad. Player 2: "Quick, hide!" 00905_ A derelict emerges from the shadows: "You need to get out of here! I've been tracking a group of Assembled to figure out where they're coming from, and they're closing on this area, come on!" 00907_ C-45 Heavy ARC bursts open, deploying its payload. 00907_ D-53 Grenadier unfolds itself. 00911_ TB-IE7(h): "I'll hold them off! Go on ahead or try to find another way!" 00911_ HV Slug penetrates Wall. 00913_ R-06 Scavenger collects Flight Unit. 00913_ HV Slug penetrates D-53 Grenadier. 00913_ HV Slug penetrates Wall. 00913_ Destroyed Shock Absorption System. 00914_ Ion Engine destroyed. 00914_ TB-IE7(h) destroyed. Map ----- +----------------------------------------------------+ | | | | | | | | | | | | | | | | | | | | | | | | | | | | | | | ?????????????????????????????????????????????????? | | ?????????????????????????????????????????????????? | | ?????????????????????????????????????????????????? | | ??????????????????????????????????####???????????? | | ????????????????????????########### ###?????????? | | ??????????????????????### ##????????? | | ????????????????####### # ###### #????????? | | ???????????????## ## ##??# #????????? | | ??????????# #### ] ### ##????????? | | ??????????# %% d @ ## ##?????????? | | ??????????# d @ ! ## ##??????????? | | ??????????###### ### ##???????????? | | ????????????#### #?####????????????? | | ?????????#### # #?????????????????? | | ????????## ##### # ##?????????????????? | | ???????## ####???#### ###??????????????????? | | ???????# ##??????????#r#????????????????????? | | ???????# ##???????????#%#????????????????????? | | ???????# #????????????% #????????????????????? | | ???????## ##????????????###????????????????????? | | ????????####?????????????????????????????????????? | | ?????????????????????????????????????????????????? | | ?????????????????????????????????????????????????? | | ?????????????????????????????????????????????????? | | ?????????????????????????????????????????????????? | | ?????????????????????????????????????????????????? | | ?????????????????????????????????????????????????? | | ?????????????????????????????????????????????????? | | ?????????????????????????????????????????????????? | | ?????????????????????????????????????????????????? | | ?????????????????????????????????????????????????? | | ?????????????????????????????????????????????????? | | ?????????????????????????????????????????????????? | | ?????????????????????????????????????????????????? | | ?????????????????????????????????????????????????? | +----------------------------------------------------+ Best States ------------- Heat Dissipation 39 Energy Generation 10 Energy Capacity 250 Matter Stores 300 Matter Capacity 300 Sight Range 16 Terrain Scan Density 10 Evasion (%) 40 Recoil Reduction 2 Item Schematics ----------------- Hcp. Storage Unit | -10/Materials | Hacked Robot Schematics ------------------ None Fabricated ------------ Nothing Repaired ---------- Nothing Studied --------- None Alien Tech Used ----------------- None Achievements -------------- None Challenges ------------ None Player 2 | -11 -10 -10 ---------- Run | Yrd Mat Min Slots Evolved . | . . . Power . | . . . Propulsion . | . . . Utility . | . . . Weapon . | . . . Parts Attached 10 | . 10 . Parts Lost 2 | . . 2 Damage Taken 439 | . 242 197 Core 95 | . 73 22 Player 2/Cogmind (%) 37 | . 59 16 Absorbed by Shields . | . . . Damage Inflicted 493 | . 452 41 Player 2/Cogmind (%) 34 | . 44 19 Combat Hostiles Destroyed 7 | . 7 . Player 2/Cogmind (%) 46 | . 58 . Game ------ Seed CarbideAluminumFlamer Manual? 0 Play Time 00:08:27 Cumulative 542.9 hours Start 2026.09.02 @ 23:59:44 End 2026.09.03 @ 00:07:00 Sessions 1 Manual Loads 0 Difficulty Rogue Special Mode AFD2020/Player2 Game No. 199 Rogue 198 Adventurer 1 Explorer 0 Win Type - Total 28 Types 8/3/4/2/1/1/6/1/1/1 Lore% 69 Gallery% 85 Achievement% 81 Wizard Run 0 Options --------- Layout 0 ASCII 0 Keyboard 0 Movement Arrows Keybinds 0 Fullscreen 2 Font 24/Smallcaps Map View 76x50 Zoom Use 0% Tactical HUD 1 Map Filters NONE Filters NONE Steam 1 RUN: efec706f-be83-4daa-bf51-8cf939dee982